[Event "Swedish Chess Championship 2019: Weekend 1"]
[Site "Stiga Sports Arena, Arenatorget 1, Eskilstuna, Sweden"]
[Date "2019.07.06"]
[Round "3.8"]
[White "Johansson, Roy"]
[Black "Eriksson, Hans"]
[Result "1-0"]
[TimeControl "90 minutes + 30 seconds per move from move one"]
[WhiteFideId "1745972"]
[BlackFideId "1737040"]
[WhiteElo "1932"]
[BlackElo "1936"]

1. d4 {[%clk 01:30:56]} {[%emt 00:00:04]} Nf6 {[%clk 01:30:56]} {[%emt
00:00:05]} 2. Bf4 {[%clk 01:31:16]} {[%emt 00:00:09]} g6 {[%clk 01:31:21]}
{[%emt 00:00:05]} 3. e3 {[%clk 01:31:42]} {[%emt 00:00:04]} Bg7 {[%clk
01:31:44]} {[%emt 00:00:07]} 4. h3 {[%clk 01:32:07]} {[%emt 00:00:04]} d6
{[%clk 01:32:11]} {[%emt 00:00:04]} 5. Nf3 {[%clk 01:32:32]} {[%emt 00:00:05]}
O-O {[%clk 01:32:34]} {[%emt 00:00:07]} 6. Be2 {[%clk 01:32:57]} {[%emt
00:00:05]} Nfd7 {[%clk 01:32:29]} {[%emt 00:00:35]} 7. O-O {[%clk 01:33:01]}
{[%emt 00:00:25]} Nc6 {[%clk 01:32:56]} {[%emt 00:00:04]} 8. c4 {[%clk
01:33:02]} {[%emt 00:00:29]} e5 {[%clk 01:33:15]} {[%emt 00:00:11]} 9. Bh2
{[%clk 01:33:13]} {[%emt 00:00:19]} exd4 {[%clk 01:28:16]} {[%emt 00:05:29]} 10.
exd4 {[%clk 01:33:26]} {[%emt 00:00:17]} Qf6 {[%clk 01:26:30]} {[%emt
00:02:16]} 11. Nc3 {[%clk 01:32:14]} {[%emt 00:01:43]} Re8 {[%clk 01:19:00]}
{[%emt 00:08:00]} 12. Nd5 {[%clk 01:30:24]} {[%emt 00:02:20]} Qd8 {[%clk
01:19:16]} {[%emt 00:00:13]} 13. Qd2 {[%clk 01:20:51]} {[%emt 00:10:02]} Nf6
{[%clk 01:18:43]} {[%emt 00:01:04]} 14. Nc3 {[%clk 01:20:40]} {[%emt 00:00:42]}
Ne4 {[%clk 01:13:51]} {[%emt 00:05:21]} 15. Nxe4 {[%clk 01:19:22]} {[%emt
00:01:48]} Rxe4 {[%clk 01:13:22]} {[%emt 00:00:59]} 16. d5 {[%clk 01:16:19]}
{[%emt 00:03:33]} Nd4 {[%clk 01:04:13]} {[%emt 00:09:39]} 17. Nxd4 {[%clk
01:15:58]} {[%emt 00:00:51]} Rxd4 {[%clk 01:04:34]} {[%emt 00:00:08]} 18. Qe3
{[%clk 01:13:51]} {[%emt 00:02:37]} Bd7 {[%clk 01:01:48]} {[%emt 00:03:16]} 19.
Bf4 {[%clk 01:13:00]} {[%emt 00:01:22]} Qf6 {[%clk 00:45:49]} {[%emt 00:16:29]}
20. Bg5 {[%clk 01:12:07]} {[%emt 00:01:23]} Qf5 {[%clk 00:38:50]} {[%emt
00:07:29]} 21. Bg4 {[%clk 01:09:48]} {[%emt 00:02:49]} Rxg4 {[%clk 00:38:24]}
{[%emt 00:00:56]} 22. hxg4 {[%clk 01:06:45]} {[%emt 00:03:32]} Qxg4 {[%clk
00:38:50]} {[%emt 00:00:04]} 23. Qf4 {[%clk 01:02:14]} {[%emt 00:05:02]} Qxf4
{[%clk 00:33:26]} {[%emt 00:05:53]} 24. Bxf4 {[%emt 00:00:10]} Bxb2 {[%emt
00:00:03]} 25. Rab1 {[%clk 01:02:10]} {[%emt 00:00:20]} Bd4 {[%clk 00:33:41]}
{[%emt 00:00:15]} 26. Rxb7 {[%clk 01:02:06]} {[%emt 00:00:35]} Bb6 {[%clk
00:33:43]} {[%emt 00:00:28]} 27. c5 {[%clk 01:00:01]} {[%emt 00:02:35]} Bc8
{[%clk 00:34:01]} {[%emt 00:00:13]} 28. cxb6 {[%clk 01:00:20]} {[%emt
00:00:11]} Bxb7 {[%clk 00:34:22]} {[%emt 00:00:08]} 29. bxc7 {[%clk 01:00:42]}
{[%emt 00:00:08]} Bxd5 {[%clk 00:28:40]} {[%emt 00:06:12]} 30. Rd1 {[%clk
00:59:48]} {[%emt 00:01:24]} Be6 {[%clk 00:19:05]} {[%emt 00:10:05]} 31. Rxd6
{[%clk 00:59:27]} {[%emt 00:00:52]} Kg7 {[%clk 00:17:58]} {[%emt 00:01:37]} 32.
Be5+ {[%clk 00:54:01]} {[%emt 00:05:56]} Kh6 {[%clk 00:17:57]} {[%emt
00:00:31]} 33. Bf6 {[%clk 00:53:29]} {[%emt 00:01:02]} Rc8 {[%clk 00:16:01]}
{[%emt 00:02:26]} 34. Bd8 {[%clk 00:53:48]} {[%emt 00:00:11]} Bxa2 {[%clk
00:14:57]} {[%emt 00:01:34]} 35. Ra6 {[%clk 00:53:27]} {[%emt 00:00:51]} Be6
{[%clk 00:15:01]} {[%emt 00:00:26]} 36. Rxa7 {[%clk 00:53:34]} {[%emt
00:00:23]} Kg7 {[%clk 00:13:23]} {[%emt 00:02:07]} 37. Kh2 {[%clk 00:51:48]}
{[%emt 00:02:17]} Kf8 {[%clk 00:12:53]} {[%emt 00:01:00]} 38. Kg3 {[%clk
00:52:01]} {[%emt 00:00:18]} Ke8 {[%clk 00:11:49]} {[%emt 00:01:35]} 39. Kf4
{[%clk 00:51:54]} {[%emt 00:00:36]} Bd5 {[%clk 00:07:48]} {[%emt 00:04:31]} 40.
g4 {[%clk 00:49:57]} {[%emt 00:02:26]} Kd7 {[%clk 00:07:25]} {[%emt 00:00:54]}
41. Ra5 {[%clk 00:49:06]} {[%emt 00:01:21]} Be6 {[%clk 00:06:34]} {[%emt
00:01:21]} 42. g5 {[%clk 00:48:50]} {[%emt 00:00:46]} Kd6 {[%clk 00:06:21]}
{[%emt 00:00:43]} 43. Ke4 {[%clk 00:47:50]} {[%emt 00:01:30]} Rxc7 {[%clk
00:05:02]} {[%emt 00:01:49]} 44. Bxc7+ {[%clk 00:47:59]} {[%emt 00:00:21]} Kxc7
{[%clk 00:05:27]} {[%emt 00:00:05]} 45. Ke5 {[%clk 00:48:15]} {[%emt 00:00:14]}
Kd7 {[%clk 00:04:01]} {[%emt 00:01:56]} 46. Kf6 {[%clk 00:48:26]} {[%emt
00:00:20]} Kd6 {[%clk 00:03:52]} {[%emt 00:00:41]} 47. Kg7 {[%clk 00:48:44]}
{[%emt 00:00:09]} Bd5 {[%clk 00:03:05]} {[%emt 00:01:17]} 48. Kxh7 {[%clk
00:48:46]} {[%emt 00:00:31]} Ke5 {[%clk 00:03:18]} {[%emt 00:00:15]} 49. Kg7
{[%clk 00:48:56]} {[%emt 00:00:19]} Ke4 {[%clk 00:02:58]} {[%emt 00:00:50]} 50.
Rxd5 {[%clk 00:49:10]} {[%emt 00:00:16]} Kxd5 {[%clk 00:03:12]} {[%emt
00:00:16]} 51. Kxf7 {[%clk 00:49:29]} {[%emt 00:00:11]} 1-0

[Event "Swedish Chess Championship 2019: Weekend 1"]
[Site "Stiga Sports Arena, Arenatorget 1, Eskilstuna, Sweden"]
[Date "2019.07.06"]
[Round "3.9"]
[White "Johansson, Mathias"]
[Black "Svedberg, Hans"]
[Result "1/2-1/2"]
[TimeControl "90 minutes + 30 seconds per move from move one"]
[WhiteFideId "1723324"]
[BlackFideId "1705113"]
[WhiteElo "1912"]
[BlackElo "1993"]

1. d4 {[%clk 01:30:57]} {[%emt 00:00:02]} Nf6 {[%clk 01:26:53]} {[%emt
00:04:08]} 2. c4 {[%clk 01:31:22]} {[%emt 00:00:06]} g6 {[%clk 01:27:15]}
{[%emt 00:00:07]} 3. Nc3 {[%clk 01:31:47]} {[%emt 00:00:05]} d5 {[%clk
01:27:33]} {[%emt 00:00:12]} 4. Bf4 {[%clk 01:31:41]} {[%emt 00:00:35]} Bg7
{[%clk 01:27:08]} {[%emt 00:00:55]} 5. e3 {[%clk 01:31:32]} {[%emt 00:00:40]}
c5 {[%clk 01:22:45]} {[%emt 00:04:53]} 6. dxc5 {[%clk 01:29:50]} {[%emt
00:02:12]} Qa5 {[%clk 01:20:26]} {[%emt 00:02:49]} 7. Rc1 {[%clk 01:29:16]}
{[%emt 00:01:05]} dxc4 {[%clk 01:18:31]} {[%emt 00:02:25]} 8. Bxc4 {[%clk
01:28:49]} {[%emt 00:00:56]} Nc6 {[%clk 01:17:46]} {[%emt 00:01:15]} 9. Nf3
{[%clk 01:28:26]} {[%emt 00:00:54]} Qxc5 {[%clk 01:15:36]} {[%emt 00:02:40]} 10.
Bb3 {[%clk 01:28:45]} {[%emt 00:00:11]} O-O {[%clk 01:12:16]} {[%emt 00:03:49]}
11. O-O {[%clk 01:28:58]} {[%emt 00:00:18]} Qa5 {[%clk 01:05:38]} {[%emt
00:07:09]} 12. h3 {[%clk 01:27:16]} {[%emt 00:02:11]} Bf5 {[%clk 00:47:12]}
{[%emt 00:18:55]} 13. Qe2 {[%clk 01:26:49]} {[%emt 00:00:57]} Ne4 {[%clk
00:37:09]} {[%emt 00:10:32]} 14. Nd5 {[%clk 01:24:54]} {[%emt 00:02:26]} e5
{[%clk 00:32:54]} {[%emt 00:04:45]} 15. Rxc6 {[%clk 01:24:39]} {[%emt
00:00:45]} exf4 {[%clk 00:28:53]} {[%emt 00:04:31]} 16. Rcc1 {[%clk 01:18:01]}
{[%emt 00:07:08]} Nc5 {[%clk 00:16:52]} {[%emt 00:12:31]} 17. Bc4 {[%clk
01:10:58]} {[%emt 00:07:34]} Na4 {[%clk 00:08:57]} {[%emt 00:08:24]} 18. b4
{[%clk 00:53:59]} {[%emt 00:17:29]} Qd8 {[%clk 00:08:42]} {[%emt 00:00:44]} 19.
Nxf4 {[%clk 00:42:54]} {[%emt 00:11:35]} Nc3 {[%clk 00:07:20]} {[%emt
00:01:52]} 20. Qb2 {[%clk 00:35:27]} {[%emt 00:07:56]} b5 {[%clk 00:07:04]}
{[%emt 00:00:46]} 21. Nd4 {[%clk 00:32:56]} {[%emt 00:03:00]} Bxd4 {[%clk
00:06:50]} {[%emt 00:00:45]} 22. exd4 {[%clk 00:33:21]} {[%emt 00:00:05]} Na4
{[%clk 00:04:57]} {[%emt 00:02:23]} 23. Qb3 {[%clk 00:32:27]} {[%emt 00:01:24]}
bxc4 {[%clk 00:05:20]} {[%emt 00:00:08]} 24. Qxa4 {[%clk 00:32:51]} {[%emt
00:00:05]} Qxd4 {[%clk 00:05:42]} {[%emt 00:00:07]} 25. Ne2 {[%clk 00:32:57]}
{[%emt 00:00:24]} Qe5 {[%clk 00:05:39]} {[%emt 00:00:33]} 26. Rfe1 {[%clk
00:33:07]} {[%emt 00:00:20]} Bd3 {[%clk 00:04:42]} {[%emt 00:01:26]} 27. Nc3
{[%clk 00:32:59]} {[%emt 00:00:38]} Qd4 {[%clk 00:04:05]} {[%emt 00:01:06]} 28.
Qc6 {[%clk 00:31:46]} {[%emt 00:01:42]} Rac8 {[%clk 00:03:56]} {[%emt
00:00:40]} 29. Qd5 {[%clk 00:32:09]} {[%emt 00:00:06]} Qb6 {[%clk 00:02:49]}
{[%emt 00:01:39]} 30. b5 {[%clk 00:32:02]} {[%emt 00:00:37]} Rfd8 {[%clk
00:02:25]} {[%emt 00:00:54]} 31. Qg5 {[%clk 00:32:02]} {[%emt 00:00:29]} Qd4
{[%clk 00:02:21]} {[%emt 00:00:35]} 32. Re5 {[%clk 00:31:14]} {[%emt 00:01:18]}
h6 {[%clk 00:01:45]} {[%emt 00:01:06]} 33. Qf6 {[%clk 00:30:43]} {[%emt
00:01:01]} Rd6 {[%clk 00:02:06]} {[%emt 00:00:09]} 34. Qe7 {[%clk 00:31:04]}
{[%emt 00:00:09]} Rd7 {[%clk 00:02:14]} {[%emt 00:00:23]} 35. Qf6 {[%clk
00:29:45]} {[%emt 00:01:49]} Rd6 {[%clk 00:02:42]} {[%emt 00:00:03]} 36. Qe7
{[%clk 00:29:58]} {[%emt 00:00:21]} Rd7 {[%clk 00:03:04]} {[%emt 00:00:02]}
1/2-1/2

[Event "Swedish Chess Championship 2019: Weekend 1"]
[Site "Stiga Sports Arena, Arenatorget 1, Eskilstuna, Sweden"]
[Date "2019.07.06"]
[Round "3.10"]
[White "Nyberg, Stefan"]
[Black "Mitra, Akash"]
[Result "0-1"]
[TimeControl "90 minutes + 30 seconds per move from move one"]
[WhiteFideId "1737171"]
[BlackFideId "1726714"]
[WhiteElo "1921"]
[BlackElo "1957"]

1. d4 {[%clk 01:29:35]} {[%emt 00:01:24]} f5 {[%clk 01:29:19]} {[%emt
00:01:42]} 2. Nf3 {[%clk 01:29:19]} {[%emt 00:00:46]} Nf6 {[%clk 01:29:14]}
{[%emt 00:00:34]} 3. g3 {[%clk 01:29:34]} {[%emt 00:00:15]} g6 {[%clk
01:29:28]} {[%emt 00:00:16]} 4. Bg2 {[%clk 01:30:00]} {[%emt 00:00:05]} Bg7
{[%clk 01:29:42]} {[%emt 00:00:15]} 5. c4 {[%clk 01:29:30]} {[%emt 00:01:00]}
O-O {[%clk 01:29:54]} {[%emt 00:00:17]} 6. O-O {[%clk 01:28:34]} {[%emt
00:01:27]} d6 {[%clk 01:29:09]} {[%emt 00:01:15]} 7. Nc3 {[%clk 01:28:18]}
{[%emt 00:00:46]} Qe8 {[%clk 01:28:47]} {[%emt 00:00:52]} 8. Bg5 {[%clk
01:13:18]} {[%emt 00:15:30]} e5 {[%clk 01:24:44]} {[%emt 00:04:33]} 9. dxe5
{[%clk 01:02:19]} {[%emt 00:11:29]} dxe5 {[%clk 01:24:49]} {[%emt 00:00:25]} 10.
Nd5 {[%clk 00:45:16]} {[%emt 00:17:32]} Nxd5 {[%clk 01:21:29]} {[%emt
00:03:51]} 11. Qxd5+ {[%clk 00:35:47]} {[%emt 00:09:59]} Kh8 {[%clk 01:20:07]}
{[%emt 00:01:53]} 12. Rad1 {[%clk 00:29:49]} {[%emt 00:06:28]} Nc6 {[%clk
01:19:51]} {[%emt 00:00:46]} 13. Be3 {[%clk 00:19:03]} {[%emt 00:11:16]} h6
{[%clk 01:16:22]} {[%emt 00:03:59]} 14. b3 {[%clk 00:15:24]} {[%emt 00:04:10]}
g5 {[%clk 01:15:56]} {[%emt 00:00:56]} 15. Bc5 {[%clk 00:13:47]} {[%emt
00:02:07]} Be6 {[%clk 01:14:27]} {[%emt 00:01:58]} 16. Qd2 {[%clk 00:13:54]}
{[%emt 00:00:23]} Rf6 {[%clk 01:07:05]} {[%emt 00:07:52]} 17. Qc2 {[%clk
00:07:46]} {[%emt 00:06:38]} Qh5 {[%clk 00:56:06]} {[%emt 00:11:28]} 18. e3
{[%clk 00:04:04]} {[%emt 00:04:12]} g4 {[%clk 00:55:15]} {[%emt 00:01:21]} 19.
Ne1 {[%clk 00:04:00]} {[%emt 00:00:35]} Bf8 {[%clk 00:53:13]} {[%emt 00:02:32]}
20. Bxf8 {[%clk 00:03:52]} {[%emt 00:00:38]} Raxf8 {[%clk 00:53:28]} {[%emt
00:00:15]} 21. Bxc6 {[%clk 00:04:06]} {[%emt 00:00:17]} bxc6 {[%clk 00:53:56]}
{[%emt 00:00:03]} 22. Ng2 {[%clk 00:04:00]} {[%emt 00:00:36]} Qf7 {[%clk
00:40:28]} {[%emt 00:13:57]} 23. Qc3 {[%clk 00:04:15]} {[%emt 00:00:15]} Re8
{[%clk 00:39:39]} {[%emt 00:01:18]} 24. Rd2 {[%clk 00:04:13]} {[%emt 00:00:34]}
Bc8 {[%clk 00:39:15]} {[%emt 00:00:53]} 25. Rfd1 {[%clk 00:04:22]} {[%emt
00:00:21]} Qe7 {[%clk 00:39:41]} {[%emt 00:00:04]} 26. Nh4 {[%clk 00:02:23]}
{[%emt 00:02:28]} Kh7 {[%clk 00:35:45]} {[%emt 00:04:27]} 27. Qc2 {[%clk
00:02:27]} {[%emt 00:00:26]} Rf7 {[%clk 00:34:09]} {[%emt 00:02:04]} 28. Ng2
{[%clk 00:02:39]} {[%emt 00:00:19]} h5 {[%clk 00:32:52]} {[%emt 00:01:48]} 29.
Qd3 {[%clk 00:02:13]} {[%emt 00:00:56]} Kg8 {[%clk 00:27:39]} {[%emt 00:05:42]}
30. Qc2 {[%clk 00:01:53]} {[%emt 00:00:51]} Ref8 {[%clk 00:27:49]} {[%emt
00:00:19]} 31. Nh4 {[%clk 00:02:06]} {[%emt 00:00:17]} Rf6 {[%clk 00:27:44]}
{[%emt 00:00:35]} 32. Ng2 {[%clk 00:02:27]} {[%emt 00:00:09]} Rd6 {[%clk
00:28:04]} {[%emt 00:00:10]} 33. c5 {[%clk 00:02:20]} {[%emt 00:00:38]} Rxd2
{[%clk 00:28:12]} {[%emt 00:00:23]} 34. Rxd2 {[%clk 00:02:46]} {[%emt
00:00:02]} Be6 {[%clk 00:28:26]} {[%emt 00:00:19]} 35. Nh4 {[%clk 00:02:02]}
{[%emt 00:01:14]} Qf7 {[%clk 00:26:43]} {[%emt 00:02:11]} 36. e4 {[%clk
00:01:33]} {[%emt 00:00:59]} f4 {[%clk 00:16:37]} {[%emt 00:10:36]} 37. Ng2
{[%clk 00:00:52]} {[%emt 00:01:11]} fxg3 {[%clk 00:13:28]} {[%emt 00:03:41]} 38.
hxg3 {[%clk 00:01:14]} {[%emt 00:00:06]} Qf6 {[%clk 00:12:28]} {[%emt
00:01:30]} 39. Nh4 {[%clk 00:01:20]} {[%emt 00:00:25]} Rd8 {[%clk 00:11:14]}
{[%emt 00:01:42]} 40. Qd1 {[%clk 00:01:16]} {[%emt 00:00:35]} Rd4 {[%clk
00:11:28]} {[%emt 00:00:18]} 41. Qe2 {[%clk 00:01:05]} {[%emt 00:00:40]} Qd8
{[%clk 00:11:19]} {[%emt 00:00:39]} 42. Rxd4 {[%clk 00:00:52]} {[%emt
00:00:57]} Qxd4 {[%clk 00:11:48]} 43. Qe3 {[%clk 00:01:10]} {[%emt 00:00:10]}
Qxe3 {[%clk 00:11:54]} {[%emt 00:00:12]} 44. fxe3 {[%clk 00:01:38]} {[%emt
00:00:02]} Kg7 {[%clk 00:11:57]} {[%emt 00:01:02]} 45. Kf2 {[%clk 00:01:51]}
{[%emt 00:00:01]} Bf7 {[%clk 00:09:40]} {[%emt 00:05:50]} 46. Ke2 {[%clk
00:01:33]} Kf6 {[%clk 00:09:58]} 47. Kd3 {[%clk 00:01:31]} Ke6 {[%clk
00:09:08]} {[%emt 00:00:07]} 48. b4 {[%clk 00:01:00]} {[%emt 00:00:26]} Kd7
{[%clk 00:08:56]} {[%emt 00:00:40]} 49. Ng2 {[%clk 00:00:40]} {[%emt 00:00:51]}
Bxa2 {[%clk 00:08:55]} {[%emt 00:00:32]} 50. Kc2 {[%clk 00:00:56]} {[%emt
00:00:13]} Bf7 {[%clk 00:08:52]} {[%emt 00:00:33]} 51. Ne1 {[%clk 00:01:01]}
{[%emt 00:00:24]} Bg6 {[%clk 00:08:47]} {[%emt 00:00:35]} 52. Kd3 {[%clk
00:01:23]} {[%emt 00:00:08]} Kc8 {[%clk 00:08:59]} {[%emt 00:00:18]} 53. Nc2
{[%clk 00:01:44]} {[%emt 00:00:08]} Kb7 {[%clk 00:08:09]} {[%emt 00:01:20]} 54.
Na3 {[%clk 00:00:38]} {[%emt 00:01:35]} Bf7 {[%clk 00:07:01]} {[%emt 00:01:40]}
55. Nb1 {[%clk 00:00:45]} {[%emt 00:00:23]} a5 {[%clk 00:07:06]} {[%emt
00:00:24]} 56. bxa5 {[%clk 00:00:47]} {[%emt 00:00:28]} Ka6 {[%clk 00:07:29]}
{[%emt 00:00:07]} 0-1

[Event "Swedish Chess Championship 2019: Weekend 1"]
[Site "Stiga Sports Arena, Arenatorget 1, Eskilstuna, Sweden"]
[Date "2019.07.06"]
[Round "3.11"]
[White "Bjornvall, Tord"]
[Black "Johansson, Sven"]
[Result "1-0"]
[TimeControl "90 minutes + 30 seconds per move from move one"]
[WhiteFideId "1716557"]
[BlackFideId "1716301"]
[WhiteElo "1997"]
[BlackElo "1927"]

1. e4 {[%clk 01:30:57]} {[%emt 00:00:02]} d6 {[%clk 01:30:51]} {[%emt
00:00:10]} 2. Nc3 {[%clk 01:29:19]} {[%emt 00:02:06]} Nf6 {[%clk 01:31:12]}
{[%emt 00:00:10]} 3. d4 {[%clk 01:29:42]} {[%emt 00:00:06]} Nbd7 {[%clk
01:31:40]} {[%emt 00:00:03]} 4. f4 {[%clk 01:30:00]} {[%emt 00:00:11]} e5
{[%clk 01:31:37]} {[%emt 00:00:34]} 5. Nf3 {[%clk 01:30:01]} {[%emt 00:00:28]}
exd4 {[%clk 01:31:02]} {[%emt 00:01:06]} 6. Nxd4 {[%clk 01:28:33]} {[%emt
00:01:57]} a6 {[%clk 01:26:00]} {[%emt 00:05:33]} 7. Bc4 {[%clk 01:26:15]}
{[%emt 00:02:47]} Be7 {[%clk 01:24:07]} {[%emt 00:02:23]} 8. O-O {[%clk
01:23:51]} {[%emt 00:02:52]} O-O {[%clk 01:23:36]} {[%emt 00:01:04]} 9. a4
{[%clk 01:20:38]} {[%emt 00:03:42]} Nc5 {[%clk 01:21:22]} {[%emt 00:02:45]} 10.
Qe1 {[%clk 01:18:23]} {[%emt 00:02:44]} c6 {[%clk 01:17:49]} {[%emt 00:04:04]}
11. b4 {[%clk 01:14:10]} {[%emt 00:04:42]} Ncxe4 {[%clk 01:11:39]} {[%emt
00:06:41]} 12. Nxe4 {[%clk 01:13:37]} {[%emt 00:01:01]} d5 {[%clk 01:10:59]}
{[%emt 00:01:11]} 13. Nxf6+ {[%clk 01:09:12]} {[%emt 00:04:55]} Bxf6 {[%clk
01:11:20]} {[%emt 00:00:10]} 14. Be3 {[%clk 01:08:58]} {[%emt 00:00:43]} dxc4
{[%clk 01:09:02]} {[%emt 00:02:50]} 15. Rd1 {[%clk 01:09:03]} {[%emt 00:00:22]}
Qc7 {[%clk 01:05:10]} {[%emt 00:04:24]} 16. f5 {[%clk 01:05:45]} {[%emt
00:03:47]} Re8 {[%clk 00:51:15]} {[%emt 00:14:26]} 17. Qf2 {[%clk 01:05:00]}
{[%emt 00:01:13]} b5 {[%clk 00:45:09]} {[%emt 00:06:38]} 18. Bf4 {[%clk
01:01:42]} {[%emt 00:03:47]} Be5 {[%clk 00:37:42]} {[%emt 00:07:58]} 19. Bxe5
{[%clk 00:59:23]} {[%emt 00:02:48]} Rxe5 {[%clk 00:37:27]} {[%emt 00:00:46]} 20.
f6 {[%clk 00:55:32]} {[%emt 00:04:20]} Rh5 {[%clk 00:26:52]} {[%emt 00:11:06]}
21. h3 {[%clk 00:51:03]} {[%emt 00:04:58]} Rg5 {[%clk 00:22:59]} {[%emt
00:04:23]} 22. Nxc6 {[%clk 00:47:29]} {[%emt 00:04:02]} Bxh3 {[%clk 00:20:40]}
{[%emt 00:02:51]} 23. Ne7+ {[%clk 00:46:19]} {[%emt 00:01:42]} Kf8 {[%clk
00:19:21]} {[%emt 00:01:48]} 24. fxg7+ {[%clk 00:45:40]} {[%emt 00:01:07]} Rxg7
{[%clk 00:19:33]} {[%emt 00:00:19]} 25. Nd5 {[%clk 00:45:04]} {[%emt 00:01:05]}
Qa7 {[%clk 00:14:54]} {[%emt 00:05:10]} 26. Qxa7 {[%clk 00:42:27]} {[%emt
00:03:07]} Rxg2+ {[%clk 00:14:06]} {[%emt 00:01:19]} 27. Kh1 {[%clk 00:42:29]}
{[%emt 00:00:26]} Rxa7 {[%clk 00:14:20]} {[%emt 00:00:17]} 28. Nf4 {[%clk
00:37:32]} {[%emt 00:05:27]} Rg3 {[%clk 00:14:31]} {[%emt 00:00:21]} 29. Kh2
{[%clk 00:37:38]} {[%emt 00:00:22]} Rc3 {[%clk 00:10:36]} {[%emt 00:04:27]} 30.
Nxh3 {[%clk 00:37:18]} {[%emt 00:00:49]} Rxc2+ {[%clk 00:10:59]} {[%emt
00:00:08]} 31. Kg3 {[%clk 00:37:26]} {[%emt 00:00:21]} Rb2 {[%clk 00:09:09]}
{[%emt 00:02:21]} 32. Ng5 {[%clk 00:36:08]} {[%emt 00:01:46]} Rxb4 {[%clk
00:07:59]} {[%emt 00:01:42]} 33. Nxh7+ {[%clk 00:32:09]} {[%emt 00:04:28]} Kg7
{[%clk 00:08:19]} {[%emt 00:00:10]} 34. Nf6 {[%clk 00:31:22]} {[%emt 00:01:16]}
c3 {[%clk 00:07:41]} {[%emt 00:01:10]} 35. Rd8 {[%clk 00:31:21]} {[%emt
00:00:30]} Rb1 {[%clk 00:02:07]} {[%emt 00:06:05]} 36. Rg8+ {[%clk 00:31:27]}
{[%emt 00:00:22]} Kh6 {[%clk 00:02:31]} {[%emt 00:00:08]} 37. Rxb1 {[%clk
00:31:46]} {[%emt 00:00:11]} c2 {[%clk 00:02:54]} {[%emt 00:00:07]} 38. Rh1#
{[%clk 00:32:07]} {[%emt 00:00:09]} 1-0

[Event "Swedish Chess Championship 2019: Weekend 1"]
[Site "Stiga Sports Arena, Arenatorget 1, Eskilstuna, Sweden"]
[Date "2019.07.06"]
[Round "3.12"]
[White "Forsberg, Andre"]
[Black "Berglund, Nils-Erik"]
[Result "1/2-1/2"]
[TimeControl "90 minutes + 30 seconds per move from move one"]
[WhiteFideId "1724193"]
[BlackFideId "1710494"]
[WhiteElo "1982"]
[BlackElo "1926"]

1. e4 {[%clk 01:30:53]} {[%emt 00:00:04]} e6 {[%clk 01:30:56]} {[%emt
00:00:05]} 2. d4 {[%clk 01:31:16]} {[%emt 00:00:05]} d5 {[%clk 01:31:23]}
{[%emt 00:00:04]} 3. Nc3 {[%clk 01:31:40]} {[%emt 00:00:06]} Bb4 {[%clk
01:31:45]} {[%emt 00:00:08]} 4. e5 {[%clk 01:31:38]} {[%emt 00:00:32]} c5
{[%clk 01:32:09]} {[%emt 00:00:05]} 5. Qg4 {[%clk 01:24:02]} {[%emt 00:08:05]}
Ne7 {[%clk 01:32:25]} {[%emt 00:00:14]} 6. a3 {[%clk 01:16:33]} {[%emt
00:08:00]} Bxc3+ {[%clk 01:32:32]} {[%emt 00:00:23]} 7. bxc3 {[%clk 01:16:58]}
{[%emt 00:00:05]} Qc7 {[%clk 01:32:27]} {[%emt 00:00:35]} 8. Qxg7 {[%clk
01:17:19]} {[%emt 00:00:09]} Rg8 {[%clk 01:32:50]} {[%emt 00:00:06]} 9. Qxh7
{[%clk 01:17:40]} {[%emt 00:00:10]} cxd4 {[%clk 01:33:12]} {[%emt 00:00:07]} 10.
Ne2 {[%clk 01:16:45]} {[%emt 00:01:25]} Nbc6 {[%clk 01:32:06]} {[%emt
00:01:37]} 11. f4 {[%clk 01:16:56]} {[%emt 00:00:18]} dxc3 {[%clk 01:32:15]}
{[%emt 00:00:21]} 12. Qd3 {[%clk 01:16:42]} {[%emt 00:00:44]} d4 {[%clk
01:31:55]} {[%emt 00:00:51]} 13. Nxd4 {[%clk 01:16:39]} {[%emt 00:00:33]} Nxd4
{[%clk 01:31:25]} {[%emt 00:00:59]} 14. Qxd4 {[%clk 01:17:02]} {[%emt
00:00:07]} Bd7 {[%clk 01:31:22]} {[%emt 00:00:33]} 15. Rb1 {[%clk 01:15:11]}
{[%emt 00:02:21]} Nf5 {[%clk 01:30:28]} {[%emt 00:01:24]} 16. Qb4 {[%clk
01:11:47]} {[%emt 00:03:54]} O-O-O {[%clk 01:19:14]} {[%emt 00:11:43]} 17. Rb3
{[%clk 01:10:13]} {[%emt 00:02:05]} Bc6 {[%clk 01:17:24]} {[%emt 00:02:20]} 18.
Rxc3 {[%clk 01:09:36]} {[%emt 00:01:07]} Rd4 {[%clk 01:17:34]} {[%emt
00:00:19]} 19. Qc5 {[%clk 01:07:48]} {[%emt 00:02:19]} Qd8 {[%clk 00:49:21]}
{[%emt 00:28:43]} 20. Rd3 {[%clk 01:01:40]} {[%emt 00:06:38]} Qh4+ {[%clk
00:46:01]} {[%emt 00:03:49]} 21. g3 {[%clk 00:43:41]} {[%emt 00:18:29]} Re4+
{[%clk 00:44:11]} {[%emt 00:02:20]} 22. Kd1 {[%clk 00:42:17]} {[%emt 00:01:55]}
Nxg3 {[%clk 00:40:36]} {[%emt 00:04:05]} 23. Rxg3 {[%clk 00:39:53]} {[%emt
00:02:53]} Rxg3 {[%clk 00:40:35]} {[%emt 00:00:31]} 24. hxg3 {[%clk 00:37:21]}
{[%emt 00:03:02]} Qxh1 {[%clk 00:38:03]} {[%emt 00:03:02]} 25. Qf8+ {[%clk
00:37:27]} {[%emt 00:00:24]} Kc7 {[%clk 00:38:17]} {[%emt 00:00:15]} 26. Qd6+
{[%clk 00:37:40]} {[%emt 00:00:18]} Kb6 {[%clk 00:38:17]} {[%emt 00:00:30]} 27.
Qd8+ {[%clk 00:37:51]} {[%emt 00:00:18]} Kc5 {[%clk 00:38:37]} {[%emt
00:00:11]} 28. Qe7+ {[%clk 00:15:25]} {[%emt 00:22:56]} Kb6 {[%clk 00:38:47]}
{[%emt 00:00:19]} 29. Qd8+ {[%clk 00:15:38]} {[%emt 00:00:17]} 1/2-1/2